[Event "2nd Namma Bengaluru Open-A 2025"]
[Site "Bengaluru"]
[Date "2025.04.11"]
[Round "3.26"]
[White "Aronyak Ghosh"]
[Black "Deshmukh, Anup"]
[Result "1-0"]
[Annotator "ChessBase"]
[ECO "A11"]
[WhiteElo "2525"]
[BlackElo "2122"]
[PlyCount "105"]
[EventDate "2025.04.10"]
[EventType "swiss"]
[EventCountry "IND"]
[SourceTitle "playchess.com"]
[Source "ChessBase"]
[SourceQuality "1"]
[TimeControl "5400+30"]

1. d4 {[%emt 0:01:20]} Nf6 {[%emt 1:31:00]} 2. c4 {[%emt 0:00:10]} g6 {[%emt 0:00:00]} 3. g3 {[%emt 0:01:04]} c6 {[%emt 0:00:00]} 4. Bg2 {[%emt 0:00:59]} d5 {[%emt 0:00:00]} 5. Qa4 {[%emt 0:01:34]} Bg7 {[%emt 0:00:00]} 6. cxd5 {[%emt 0:03:13]} Nxd5 {[%emt 0:02:30]} 7. Nf3 {[%emt 0:00:54]} O-O {[%emt 0:00:00]} 8. O-O {[%emt 0:01:23]} Bg4 {[%emt 0:00:00]} 9. Rd1 {[%emt 0:04:04]} Nd7 {[%emt 0:00:00]} 10. Nc3 {[%emt 0:03:23]} N5b6 {[%emt 0:00:00]} 11. Qc2 {[%emt 0:04:55]} Qc8 {[%emt 0:00:00]} 12. h3 {[%emt 0:07:32]} Bxf3 {[%emt 0:00:00]} 13. Bxf3 {[%emt 0:00:16]} e5 {[%emt 0:00:00]} 14. dxe5 {[%emt 0:00:18]} Nxe5 {[%emt 0:00:00]} 15. Bg2 {[%emt 0:00:08]} Qe6 {[%emt 0:00:00]} 16. b3 {[%emt 0:01:47]} Rfd8 {[%emt 0:00:00]} 17. Bg5 {[%emt 0:05:54]} Rd7 {[%emt 0:00:00]} 18. Ne4 {[%emt 0:03:02]} h6 {[%emt 0:00:00]} 19. Nc5 {[%emt 0:01:54]} Rxd1+ {[%emt 0:00:00]} 20. Rxd1 {[%emt 0:00:05]} Qe8 {[%emt 0:00:00]} 21. Bc1 {[%emt 0:00:50]} Qe7 {[%emt 0:00:00]} 22. f4 {[%emt 0:05:25]} Nec4 {[%emt 0:00:00]} 23. Ne4 {[%emt 0:00:56]} Na3 {[%emt 0:00:00]} 24. Qc5 {[%emt 0:01:36]} Qxc5+ {[%emt 0:00:00]} 25. Nxc5 {[%emt 0:00:03]} Nb5 {[%emt 0:00:00]} 26. Nxb7 {[%emt 0:01:16]} Nc3 {[%emt 0:10:00]} 27. Rd2 {[%emt 0:00:31]} Rb8 {[%emt 0:00:00]} 28. Na5 {[%emt 0:04:04]} Re8 {[%emt 0:00:00]} 29. Kf1 {[%emt 0:02:52]} Nbd5 {[%emt 0:01:30]} 30. Bxd5 {[%emt 0:07:13]} cxd5 {[%emt 0:00:00]} 31. Rc2 {[%emt 0:00:17]} d4 {[%emt 0:00:00]} 32. Nc4 {[%emt 0:01:26]} f5 {[%emt 0:00:00]} 33. Ba3 {[%emt 0:04:17]} h5 {[%emt 0:00:00]} 34. Bb4 {[%emt 0:02:06]} Nd5 {[%emt 0:00:00]} 35. Bd2 {[%emt 0:01:36]} h4 {[%emt 0:00:00]} 36. gxh4 {[%emt 0:00:13]} Bh6 {[%emt 0:01:18]} 37. Ne5 {[%emt 0:03:33]} Kg7 {[%emt 0:00:02]} 38. Nf3 {[%emt 0:04:39]} Bxf4 {[%emt 0:01:11]} 39. Bxf4 {[%emt 0:00:09]} Nxf4 {[%emt 0:00:02]} 40. Nxd4 {[%emt 0:00:07]} Kh6 {[%emt 0:00:41]} 41. Kf2 {[%emt 0:01:02]} Re4 {[%emt 0:00:59]} 42. Rc4 {[%emt 0:05:03]} Nxh3+ {[%emt 0:00:59]} 43. Kg3 {[%emt 0:00:48]} Nf4 {[%emt 0:00:52]} 44. Kf3 {[%emt 0:00:01]} Nd5 {[%emt 0:00:44]} 45. Nc6 {[%emt 0:00:40]} Re3+ {[%emt 0:00:30]} 46. Kf2 {[%emt 0:00:01]} Rh3 {[%emt 0:00:11]} 47. Ne5 {[%emt 0:01:44]} Ne3 {[%emt 0:00:59]} 48. Rc6 {[%emt 0:00:36]} Ng4+ 49. Nxg4+ {[%emt 0:00:01]} fxg4 {[%emt 0:00:32]} 50. Ra6 {[%emt 0:00:14]} Kh5 {[%emt 0:00:08]} 51. Rxa7 {[%emt 0:00:14]} Rh2+ {[%emt 0:00:12]} 52. Kg3 {[%emt 0:00:20]} Rh3+ {[%emt 0:00:04]} 53. Kf4 {[%emt 0:00:23]} 1-0

[Event "2nd Namma Bengaluru Open-A 2025"]
[Site "Bengaluru"]
[Date "2025.04.11"]
[Round "3.27"]
[White "Avadhoot Lokesh Bhakti Brahme"]
[Black "Chanda, Sandipan"]
[Result "1/2-1/2"]
[Annotator "ChessBase"]
[ECO "A85"]
[WhiteElo "2112"]
[BlackElo "2485"]
[PlyCount "84"]
[EventDate "2025.04.10"]
[EventType "swiss"]
[EventCountry "IND"]
[SourceTitle "playchess.com"]
[Source "ChessBase"]
[SourceQuality "1"]
[TimeControl "5400+30"]

1. d4 {[%emt 0:19:24]} e6 {[%emt 0:00:42]} 2. Nf3 {[%emt 0:01:38]} f5 {[%emt 0:00:13]} 3. c4 {[%emt 0:01:23]} Nf6 {[%emt 0:00:10]} 4. Nc3 {[%emt 0:00:05]} Bb4 {[%emt 0:00:27]} 5. Bd2 {[%emt 0:00:55]} O-O {[%emt 0:00:27]} 6. g3 {[%emt 0:00:27]} d5 {[%emt 0:00:23]} 7. Bg2 {[%emt 0:04:36]} c6 {[%emt 0:00:12]} 8. a3 {[%emt 0:03:25]} Bd6 {[%emt 0:00:41]} 9. c5 {[%emt 0:02:45]} Bc7 {[%emt 0:00:19]} 10. O-O {[%emt 0:00:21]} Ne4 {[%emt 0:03:30]} 11. Bf4 {[%emt 0:02:40]} Bxf4 {[%emt 0:01:03]} 12. gxf4 {[%emt 0:00:02]} b6 {[%emt 0:11:31]} 13. Na4 {[%emt 0:09:56]} Nd7 {[%emt 0:04:21]} 14. Rc1 {[%emt 0:00:28]} b5 {[%emt 0:01:59]} 15. Nc3 {[%emt 0:00:52]} a5 {[%emt 0:00:11]} 16. e3 {[%emt 0:07:27]} b4 {[%emt 0:01:12]} 17. Ne2 {[%emt 0:00:33]} Ba6 {[%emt 0:00:33]} 18. Re1 {[%emt 0:00:40]} Bxe2 {[%emt 0:06:16]} 19. Qxe2 {[%emt 0:01:45]} bxa3 {[%emt 0:06:33]} 20. bxa3 {[%emt 0:00:09]} a4 {[%emt 0:01:49]} 21. Nd2 {[%emt 0:01:28]} Nef6 {[%emt 0:03:07]} 22. Nf1 {[%emt 0:01:46]} Qa5 {[%emt 0:05:51]} 23. Qd2 {[%emt 0:00:24]} Qa7 {[%emt 0:04:36]} 24. Rb1 {[%emt 0:02:57]} Rfb8 {[%emt 0:04:13]} 25. Qc2 {[%emt 0:01:18]} Ne8 {[%emt 0:03:24]} 26. Ng3 {[%emt 0:01:02]} Nc7 {[%emt 0:01:49]} 27. Bf1 {[%emt 0:00:16]} Qa5 {[%emt 0:01:51]} 28. Rec1 {[%emt 0:01:31]} Ne8 {[%emt 0:01:41]} 29. Ne2 {[%emt 0:00:23]} Nef6 {[%emt 0:04:19]} 30. Nc3 {[%emt 0:01:19]} Rb3 {[%emt 0:00:53]} 31. Rxb3 {[%emt 0:02:49]} axb3 {[%emt 0:00:06]} 32. Qxb3 {[%emt 0:00:03]} Qxa3 {[%emt 0:00:46]} 33. Qxa3 {[%emt 0:00:26]} Rxa3 {[%emt 0:00:30]} 34. Rc2 {[%emt 0:02:00]} Kf7 {[%emt 0:00:00]} 35. Na2 {[%emt 0:03:02]} Rb3 {[%emt 0:00:40]} 36. Nc1 {[%emt 0:00:58]} Rb1 {[%emt 0:00:07]} 37. Nd3 {[%emt 0:00:06]} Ke7 {[%emt 0:02:01]} 38. f3 {[%emt 0:05:42]} Ne8 {[%emt 0:02:22]} 39. Rb2 {[%emt 0:00:19]} Rxb2 {[%emt 0:01:12]} 40. Nxb2 {[%emt 0:00:01]} h6 {[%emt 0:01:10]} 41. Nd3 {[%emt 0:03:02]} Kd8 {[%emt 0:00:34]} 42. h4 {[%emt 0:00:43]} Kc7 {[%emt 0:02:21]} 1/2-1/2

[Event "2nd Namma Bengaluru Open-A 2025"]
[Site "Bengaluru"]
[Date "2025.04.11"]
[Round "3.28"]
[White "Goutham Krishna H"]
[Black "Ashwin Sairam"]
[Result "1-0"]
[Annotator "ChessBase"]
[ECO "A20"]
[WhiteElo "2449"]
[BlackElo "2074"]
[PlyCount "157"]
[EventDate "2025.04.10"]
[EventType "swiss"]
[EventCountry "IND"]
[SourceTitle "playchess.com"]
[Source "ChessBase"]
[SourceQuality "1"]
[TimeControl "5400+30"]

1. c4 {[%emt 0:00:36]} e5 {[%emt 0:00:08]} 2. d3 {[%emt 0:00:39]} Nf6 {[%emt 0:00:41]} 3. Nf3 {[%emt 0:00:16]} Nc6 {[%emt 0:00:40]} 4. a3 {[%emt 0:00:07]} a5 {[%emt 0:00:20]} 5. e3 {[%emt 0:00:10]} d5 {[%emt 0:00:17]} 6. cxd5 {[%emt 0:00:06]} Nxd5 {[%emt 0:00:06]} 7. b3 {[%emt 0:00:10]} Be6 {[%emt 0:06:30]} 8. Bb2 {[%emt 0:01:13]} f6 {[%emt 0:00:04]} 9. Qc2 {[%emt 0:00:55]} Be7 {[%emt 0:06:49]} 10. Nbd2 {[%emt 0:00:26]} O-O {[%emt 0:00:26]} 11. Be2 {[%emt 0:00:18]} Qe8 {[%emt 0:04:19]} 12. O-O {[%emt 0:00:49]} Qg6 {[%emt 0:02:03]} 13. Rfd1 {[%emt 0:00:18]} Kh8 {[%emt 0:08:10]} 14. Ne4 {[%emt 0:06:55]} Bh3 {[%emt 0:09:56]} 15. Ng3 {[%emt 0:09:29]} Be6 {[%emt 0:01:33]} 16. Kh1 {[%emt 0:06:43]} Nb6 {[%emt 0:05:12]} 17. Ne4 {[%emt 0:05:33]} a4 {[%emt 0:01:15]} 18. bxa4 {[%emt 0:02:14]} Nxa4 {[%emt 0:00:33]} 19. Nc3 {[%emt 0:01:45]} Nc5 {[%emt 0:05:10]} 20. Nd2 {[%emt 0:00:04]} Na5 {[%emt 0:02:48]} 21. Rab1 {[%emt 0:09:08]} Rfd8 {[%emt 0:15:15]} 22. Nce4 {[%emt 0:53:36]} Nab3 {[%emt 0:04:01]} 23. Nc4 {[%emt 0:00:00]} b5 {[%emt 0:02:07]} 24. Ncd2 {[%emt 0:00:00]} Nxd2 {[%emt 0:00:36]} 25. Nxc5 {[%emt 0:00:00]} Bxc5 {[%emt 0:05:20]} 26. Rxd2 {[%emt 0:00:00]} Bxa3 {[%emt 0:04:44]} 27. Bxa3 {[%emt 0:00:00]} Rxa3 {[%emt 0:00:09]} 28. Qxc7 {[%emt 0:00:00]} Raa8 {[%emt 0:00:08]} 29. h3 {[%emt 0:00:00]} Bd5 {[%emt 0:02:43]} 30. Bf1 {[%emt 0:00:00]} Bc4 {[%emt 0:03:57]} 31. e4 {[%emt 0:00:00]} f5 {[%emt 0:05:03]} 32. Rdd1 {[%emt 0:00:00]} Ba2 {[%emt 0:01:38]} 33. exf5 {[%emt 0:00:00]} Qxf5 {[%emt 0:00:24]} 34. Rxb5 {[%emt 0:00:00]} Qxf2 {[%emt 0:00:36]} 35. Qxe5 {[%emt 0:00:00]} Re8 {[%emt 0:00:27]} 36. Qb2 {[%emt 0:00:00]} Qg3 {[%emt 0:02:15]} 37. Be2 {[%emt 0:00:00]} Be6 {[%emt 0:00:37]} 38. Bf3 {[%emt 0:00:00]} Rad8 {[%emt 0:00:54]} 39. Qe5 {[%emt 0:00:01]} Qg6 {[%emt 0:01:03]} 40. Bh5 {[%emt 0:00:55]} Bg4 {[%emt 0:00:40]} 41. Bxg6 {[%emt 0:04:01]} Rxe5 {[%emt 0:00:05]} 42. Rxe5 {[%emt 0:00:10]} Bxd1 {[%emt 0:00:08]} 43. Be4 {[%emt 0:00:08]} g6 {[%emt 0:00:32]} 44. Rc5 {[%emt 0:00:45]} Be2 {[%emt 0:01:01]} 45. Rc2 {[%emt 0:00:38]} Bd1 {[%emt 0:00:33]} 46. Rc3 {[%emt 0:00:18]} Kg7 {[%emt 0:00:06]} 47. Kg1 {[%emt 0:00:01]} Rf8 {[%emt 0:00:18]} 48. Rc7+ {[%emt 0:00:46]} Kh6 {[%emt 0:00:27]} 49. Kh2 {[%emt 0:01:38]} Bb3 {[%emt 0:01:24]} 50. g4 {[%emt 0:00:26]} Rf7 {[%emt 0:00:41]} 51. Rc5 {[%emt 0:01:51]} Kg7 {[%emt 0:00:22]} 52. g5 {[%emt 0:00:14]} Be6 {[%emt 0:00:14]} 53. Kg3 {[%emt 0:00:10]} h6 {[%emt 0:00:43]} 54. h4 {[%emt 0:00:13]} hxg5 {[%emt 0:00:41]} 55. Rxg5 {[%emt 0:00:18]} Rf6 {[%emt 0:00:34]} 56. h5 {[%emt 0:00:02]} Bf7 {[%emt 0:00:28]} 57. hxg6 {[%emt 0:00:54]} Be8 {[%emt 0:00:06]} 58. Re5 {[%emt 0:00:13]} Rf8 {[%emt 0:00:52]} 59. Re7+ {[%emt 0:00:35]} Kf6 {[%emt 0:00:17]} 60. Rb7 {[%emt 0:00:15]} Rg8 {[%emt 0:00:23]} 61. Kf4 {[%emt 0:00:13]} Rf8 {[%emt 0:00:41]} 62. Rb6+ {[%emt 0:00:08]} Kg7+ {[%emt 0:00:04]} 63. Kg5 {[%emt 0:00:06]} Rf1 {[%emt 0:01:09]} 64. Rb7+ {[%emt 0:00:06]} Kf8 {[%emt 0:00:10]} 65. g7+ {[%emt 0:00:06]} Kg8 {[%emt 0:00:01]} 66. Bd5+ {[%emt 0:00:07]} Bf7 {[%emt 0:00:05]} 67. Bxf7+ {[%emt 0:00:29]} Kxg7 {[%emt 0:00:05]} 68. Bc4+ {[%emt 0:00:08]} Kh8 {[%emt 0:00:14]} 69. Rb6 {[%emt 0:00:08]} Rg1+ {[%emt 0:00:13]} 70. Kf4 {[%emt 0:00:07]} Kg7 {[%emt 0:00:08]} 71. Ke5 {[%emt 0:00:07]} Kf8 {[%emt 0:00:07]} 72. Rb8+ {[%emt 0:00:11]} Ke7 {[%emt 0:00:02]} 73. Rb7+ {[%emt 0:00:05]} Kd8 {[%emt 0:00:01]} 74. Rh7 {[%emt 0:00:11]} Rb1 {[%emt 0:00:25]} 75. d4 {[%emt 0:00:07]} Re1+ {[%emt 0:00:10]} 76. Kd6 {[%emt 0:00:08]} Kc8 {[%emt 0:00:02]} 77. Bd5 {[%emt 0:00:08]} Kb8 {[%emt 0:00:01]} 78. Rh3 {[%emt 0:00:51]} Rd1 {[%emt 0:00:13]} 79. Ra3 {[%emt 0:00:07]} 1-0

[Event "2nd Namma Bengaluru Open-A 2025"]
[Site "Bengaluru"]
[Date "2025.04.11"]
[Round "3.29"]
[White "Shreyash Singh"]
[Black "Harsh Suresh"]
[Result "0-1"]
[Annotator "ChessBase"]
[ECO "E04"]
[WhiteElo "2105"]
[BlackElo "2389"]
[PlyCount "90"]
[EventDate "2025.04.10"]
[EventType "swiss"]
[EventCountry "IND"]
[SourceTitle "playchess.com"]
[Source "ChessBase"]
[SourceQuality "1"]
[TimeControl "5400+30"]

1. d4 {[%emt 0:00:01]} d5 {[%emt 0:00:43]} 2. c4 {[%emt 0:00:07]} e6 {[%emt 0:00:10]} 3. Nf3 {[%emt 0:00:05]} Nf6 {[%emt 0:00:14]} 4. g3 {[%emt 0:00:05]} dxc4 {[%emt 0:00:12]} 5. Bg2 {[%emt 0:00:06]} a6 {[%emt 0:00:08]} 6. O-O {[%emt 0:00:08]} Nc6 {[%emt 0:00:09]} 7. Nbd2 {[%emt 0:00:11]} b5 {[%emt 0:00:38]} 8. b3 {[%emt 0:00:49]} c3 {[%emt 0:00:59]} 9. Nb1 {[%emt 0:00:13]} b4 {[%emt 0:00:12]} 10. a3 {[%emt 0:00:14]} Rb8 {[%emt 0:09:14]} 11. axb4 {[%emt 0:00:43]} Bxb4 {[%emt 0:00:11]} 12. Qd3 {[%emt 0:01:07]} e5 {[%emt 0:04:27]} 13. Nxc3 {[%emt 0:11:00]} exd4 {[%emt 0:00:46]} 14. Ne4 {[%emt 0:04:11]} O-O {[%emt 0:21:09]} 15. Bb2 {[%emt 0:10:40]} Nxe4 {[%emt 0:20:27]} 16. Qxe4 {[%emt 0:00:30]} Rb6 {[%emt 0:04:04]} 17. Nxd4 {[%emt 0:04:37]} Nxd4 {[%emt 0:00:14]} 18. Qxd4 {[%emt 0:00:24]} Qxd4 {[%emt 0:00:54]} 19. Bxd4 {[%emt 0:00:06]} c5 {[%emt 0:00:09]} 20. Be3 {[%emt 0:02:04]} Be6 {[%emt 0:03:37]} 21. Rfb1 {[%emt 0:01:26]} Rc8 {[%emt 0:03:34]} 22. Be4 {[%emt 0:01:54]} a5 {[%emt 0:01:38]} 23. Ra2 {[%emt 0:03:55]} g6 {[%emt 0:06:52]} 24. Rc2 {[%emt 0:05:28]} Kg7 {[%emt 0:02:31]} 25. Kg2 {[%emt 0:04:01]} f6 {[%emt 0:02:39]} 26. f3 {[%emt 0:03:13]} g5 {[%emt 0:05:38]} 27. g4 {[%emt 0:01:18]} h6 {[%emt 0:01:37]} 28. Bd3 {[%emt 0:02:57]} Rbc6 {[%emt 0:01:00]} 29. Bc4 {[%emt 0:01:35]} Bxc4 {[%emt 0:00:30]} 30. Rxc4 {[%emt 0:01:25]} Re8 {[%emt 0:01:40]} 31. Re4 {[%emt 0:00:48]} Rxe4 {[%emt 0:00:20]} 32. fxe4 {[%emt 0:00:03]} c4 {[%emt 0:00:09]} 33. bxc4 {[%emt 0:16:29]} Rxc4 {[%emt 0:00:09]} 34. Kf3 {[%emt 0:03:40]} a4 {[%emt 0:00:58]} 35. Rd1 {[%emt 0:02:40]} a3 {[%emt 0:02:13]} 36. Bd4 {[%emt 0:01:27]} a2 {[%emt 0:02:50]} 37. Ba1 {[%emt 0:00:05]} Bc3 {[%emt 0:00:15]} 38. Ke3 {[%emt 0:01:10]} Kf7 {[%emt 0:03:05]} 39. Rf1 {[%emt 0:01:20]} Bxa1 {[%emt 0:00:20]} 40. Rxa1 {[%emt 0:00:03]} Ra4 {[%emt 0:00:08]} 41. Kd3 {[%emt 0:00:05]} Ke6 {[%emt 0:00:08]} 42. Kc3 {[%emt 0:00:03]} Ke5 {[%emt 0:00:33]} 43. Kb3 {[%emt 0:00:15]} Ra8 {[%emt 0:00:10]} 44. Rxa2 {[%emt 0:00:05]} Rxa2 {[%emt 0:00:06]} 45. Kxa2 {[%emt 0:00:02]} Kxe4 {[%emt 0:00:10]} 0-1

[Event "2nd Namma Bengaluru Open-A 2025"]
[Site "Bengaluru"]
[Date "2025.04.11"]
[Round "3.30"]
[White "Nirvan Bhamidi"]
[Black "Vignesh B"]
[Result "1/2-1/2"]
[Annotator "ChessBase"]
[ECO "C07"]
[WhiteElo "2089"]
[BlackElo "2191"]
[PlyCount "223"]
[EventDate "2025.04.10"]
[EventType "swiss"]
[EventCountry "IND"]
[SourceTitle "playchess.com"]
[Source "ChessBase"]
[SourceQuality "1"]
[TimeControl "5400+30"]

1. e4 {[%emt 0:00:06]} e6 {[%emt 0:00:15]} 2. d4 {[%emt 0:00:28]} d5 {[%emt 0:00:28]} 3. Nd2 {[%emt 0:00:11]} c5 {[%emt 0:00:07]} 4. exd5 {[%emt 0:00:09]} Qxd5 {[%emt 0:00:06]} 5. dxc5 {[%emt 0:01:17]} Qxc5 {[%emt 0:01:15]} 6. Ngf3 {[%emt 0:00:14]} Nf6 {[%emt 0:00:08]} 7. Bd3 {[%emt 0:00:05]} Bd6 {[%emt 0:07:46]} 8. Nc4 {[%emt 0:03:58]} Bd7 {[%emt 0:05:33]} 9. b3 {[%emt 0:02:57]} Be7 {[%emt 0:05:37]} 10. O-O {[%emt 0:14:27]} Qc7 {[%emt 0:05:33]} 11. Bb2 {[%emt 0:00:55]} Nc6 {[%emt 1:09:12]} 12. Nce5 {[%emt 0:01:58]} Nxe5 {[%emt 0:00:00]} 13. Nxe5 {[%emt 0:02:08]} Bc6 {[%emt 0:00:00]} 14. Qe2 {[%emt 0:02:56]} O-O {[%emt 0:00:00]} 15. Ng4 {[%emt 0:01:24]} Qf4 {[%emt 0:00:00]} 16. Nxf6+ {[%emt 0:01:43]} Bxf6 {[%emt 0:00:00]} 17. Bxf6 {[%emt 0:00:20]} Qxf6 {[%emt 0:00:00]} 18. Be4 {[%emt 0:00:52]} Qc3 {[%emt 0:00:00]} 19. Bxc6 {[%emt 0:00:38]} bxc6 {[%emt 0:00:00]} 20. Qd3 {[%emt 0:01:29]} Qa5 {[%emt 0:00:00]} 21. Rfd1 {[%emt 0:03:59]} Rad8 {[%emt 0:00:00]} 22. Qc4 {[%emt 0:00:37]} Qb6 {[%emt 0:00:00]} 23. Qe4 {[%emt 0:01:37]} c5 {[%emt 0:00:00]} 24. c3 {[%emt 0:02:07]} Qa5 {[%emt 0:00:00]} 25. Qc4 {[%emt 0:00:53]} Rxd1+ {[%emt 0:00:00]} 26. Rxd1 {[%emt 0:00:06]} Qxa2 {[%emt 0:00:00]} 27. h3 {[%emt 0:08:21]} h6 {[%emt 0:08:00]} 28. Rd7 {[%emt 0:00:34]} Qb1+ {[%emt 0:00:00]} 29. Kh2 {[%emt 0:00:08]} Qf5 {[%emt 0:00:00]} 30. Kg1 {[%emt 0:05:54]} a5 {[%emt 0:00:00]} 31. Qd3 {[%emt 0:05:53]} Qg5 {[%emt 0:00:00]} 32. Qf3 {[%emt 0:01:27]} Qe5 {[%emt 0:00:00]} 33. Ra7 {[%emt 0:00:19]} Qe1+ {[%emt 0:00:16]} 34. Kh2 {[%emt 0:00:15]} Qa1 {[%emt 0:01:01]} 35. g3 {[%emt 0:04:12]} Qa3 {[%emt 0:00:51]} 36. c4 {[%emt 0:00:49]} Qb4 {[%emt 0:00:27]} 37. Rb7 {[%emt 0:00:59]} Qe1 {[%emt 0:00:41]} 38. Kg2 {[%emt 0:00:49]} f5 {[%emt 0:00:56]} 39. Rc7 {[%emt 0:02:21]} Rd8 {[%emt 0:00:41]} 40. Qb7 {[%emt 0:12:47]} Qe5 {[%emt 0:00:11]} 41. Rc8 {[%emt 0:00:55]} Rxc8 {[%emt 0:00:06]} 42. Qxc8+ {[%emt 0:00:04]} Kh7 {[%emt 0:00:08]} 43. h4 {[%emt 0:01:07]} Qe4+ {[%emt 0:00:36]} 44. Kh2 {[%emt 0:00:13]} Qe5 {[%emt 0:00:58]} 45. Kg2 {[%emt 0:00:39]} Qe4+ {[%emt 0:00:51]} 46. Kh2 {[%emt 0:00:03]} Qf3 {[%emt 0:00:47]} 47. Qxc5 {[%emt 0:00:05]} Qxb3 {[%emt 0:00:05]} 48. Qxa5 {[%emt 0:00:37]} Qxc4 {[%emt 0:00:04]} 49. Qe5 {[%emt 0:00:14]} Qd5 {[%emt 0:00:01]} 50. Qf4 {[%emt 0:00:39]} Kg6 {[%emt 0:00:16]} 51. Qb8 {[%emt 0:01:11]} Qe4 {[%emt 0:00:23]} 52. f4 {[%emt 0:01:25]} Kh5 {[%emt 0:01:04]} 53. Qb3 {[%emt 0:01:57]} Qe2+ {[%emt 0:00:11]} 54. Kh3 {[%emt 0:00:27]} Qf1+ {[%emt 0:00:12]} 55. Kh2 {[%emt 0:00:02]} Kg4 {[%emt 0:00:19]} 56. Qxe6 {[%emt 0:00:13]} Qh3+ {[%emt 0:00:07]} 57. Kg1 {[%emt 0:00:01]} Qxg3+ {[%emt 0:00:07]} 58. Kh1 {[%emt 0:00:05]} Qxh4+ {[%emt 0:00:12]} 59. Kg1 {[%emt 0:00:03]} Qg3+ {[%emt 0:01:14]} 60. Kh1 {[%emt 0:00:05]} Qf3+ {[%emt 0:00:04]} 61. Kg1 {[%emt 0:00:09]} Kh3 {[%emt 0:00:26]} 62. Qxh6+ {[%emt 0:00:35]} Kg3 {[%emt 0:00:23]} 63. Qxg7+ {[%emt 0:02:27]} Kxf4 {[%emt 0:00:07]} 64. Qc7+ {[%emt 0:01:02]} Ke3 {[%emt 0:00:47]} 65. Qc3+ {[%emt 0:00:18]} Ke4 {[%emt 0:00:06]} 66. Qc6+ {[%emt 0:00:05]} Kf4 {[%emt 0:00:09]} 67. Qc7+ {[%emt 0:01:40]} Kg4 {[%emt 0:00:10]} 68. Qg7+ {[%emt 0:00:25]} Kh4 {[%emt 0:00:06]} 69. Qh6+ {[%emt 0:00:42]} Kg3 {[%emt 0:00:10]} 70. Qh3+ {[%emt 0:00:23]} Kf4 {[%emt 0:00:09]} 71. Qh6+ {[%emt 0:00:03]} Ke5 {[%emt 0:00:49]} 72. Qg7+ {[%emt 0:00:12]} Ke4 {[%emt 0:00:09]} 73. Qe7+ {[%emt 0:00:50]} Kd4 {[%emt 0:00:14]} 74. Qf6+ {[%emt 0:00:51]} Ke3 {[%emt 0:00:08]} 75. Qc3+ {[%emt 0:00:06]} Kf4 {[%emt 0:00:05]} 76. Qc7+ {[%emt 0:00:03]} Kg4 {[%emt 0:00:27]} 77. Qg7+ {[%emt 0:00:03]} Kh4 {[%emt 0:00:18]} 78. Qh6+ {[%emt 0:00:04]} Kg4 {[%emt 0:00:13]} 79. Qg7+ {[%emt 0:00:03]} Kf4 {[%emt 0:00:06]} 80. Qc7+ {[%emt 0:00:04]} Kg5 {[%emt 0:00:07]} 81. Qg7+ {[%emt 0:00:04]} Kh4 {[%emt 0:00:03]} 82. Qh6+ {[%emt 0:00:05]} Kg3 {[%emt 0:00:06]} 83. Qh3+ {[%emt 0:00:04]} Kf4 {[%emt 0:00:04]} 84. Qh6+ {[%emt 0:00:03]} Ke4 {[%emt 0:00:10]} 85. Qc6+ {[%emt 0:00:04]} Ke3 {[%emt 0:00:05]} 86. Qc3+ {[%emt 0:00:03]} Kf4 {[%emt 0:00:10]} 87. Qc7+ {[%emt 0:00:04]} Ke3 {[%emt 0:00:06]} 88. Qc3+ {[%emt 0:00:04]} Ke2 {[%emt 0:00:04]} 89. Qc2+ {[%emt 0:00:07]} Ke1 {[%emt 0:00:24]} 90. Qc1+ {[%emt 0:00:04]} Ke2 {[%emt 0:00:13]} 91. Qc2+ {[%emt 0:00:03]} Ke3 {[%emt 0:00:03]} 92. Qc3+ {[%emt 0:00:03]} Ke4 {[%emt 0:00:05]} 93. Qc6+ {[%emt 0:00:03]} Kf4 {[%emt 0:00:05]} 94. Qc7+ {[%emt 0:00:03]} Kg4 {[%emt 0:00:09]} 95. Qg7+ {[%emt 0:00:03]} Kh3 {[%emt 0:00:05]} 96. Qh6+ {[%emt 0:00:04]} Kg3 {[%emt 0:00:05]} 97. Qh3+ {[%emt 0:00:04]} Kf4 {[%emt 0:00:06]} 98. Qh6+ {[%emt 0:00:03]} Ke5 {[%emt 0:00:16]} 99. Qg7+ {[%emt 0:00:05]} Ke6 {[%emt 0:00:07]} 100. Qg8+ {[%emt 0:00:22]} Kd6 {[%emt 0:00:17]} 101. Qd8+ {[%emt 0:00:30]} Kc5 {[%emt 0:00:10]} 102. Qc7+ {[%emt 0:00:19]} Kd4 {[%emt 0:00:09]} 103. Qb6+ {[%emt 0:00:37]} Kc3 {[%emt 0:00:12]} 104. Qc5+ {[%emt 0:00:27]} Kd3 {[%emt 0:00:10]} 105. Qb5+ {[%emt 0:00:54]} Kc3 {[%emt 0:00:45]} 106. Qc5+ {[%emt 0:00:05]} Kd3 {[%emt 0:00:11]} 107. Qb5+ {[%emt 0:00:03]} Kd4 {[%emt 0:00:10]} 108. Qb4+ {[%emt 0:00:37]} Kd3 {[%emt 0:00:16]} 109. Qb5+ {[%emt 0:00:03]} Kd4 {[%emt 0:00:19]} 110. Qb4+ {[%emt 0:00:04]} Ke5 {[%emt 0:00:05]} 111. Qe7+ {[%emt 0:00:04]} Kf4 {[%emt 0:00:07]} 112. Qc7+ {[%emt 0:00:03]} 1/2-1/2